fUST/lending_fUST_20240711
["ID","MTS","AMOUNT","RATE_DAILY","PERIOD"]
[331713674,1720684245678,-194.613845,0.00027397,7]
[331713675,1720684245689,-804.995707,0.00027397,2]
[331713676,1720684245699,-194.613845,0.00027397,7]
[331713677,1720684245709,-804.995707,0.00027397,2]
[331713678,1720684245718,-194.613845,0.00027397,7]
[331713679,1720684245727,-194.613845,0.00027397,7]
[331713680,1720684245738,-804.995707,0.00027397,2]
[331713681,1720684245747,-194.613845,0.00027397,7]
[331713682,1720684245757,-804.995704,0.00027397,2]
[331713683,1720684245767,-194.613845,0.00027397,7]
[331713684,1720684245778,-194.613845,0.00027397,7]
[331713686,1720684245788,-194.613845,0.00027397,7]
[331713687,1720684245798,-194.613845,0.00027397,7]
[331713688,1720684245808,-194.613845,0.00027397,7]
[331713689,1720684245817,-152.418333,0.00027397,7]
[331713690,1720684245827,-194.613845,0.00027397,7]
[331713691,1720684245838,-194.613845,0.00027397,7]
[331713693,1720684245848,-194.613845,0.00027397,7]
[331713694,1720684245859,-151.0,0.00027397,7]
[331713695,1720684245868,-194.613845,0.00027397,7]
[331713696,1720684245878,-151.0,0.00027397,7]
[331713697,1720684245888,-194.613845,0.00027397,7]
[331713698,1720684245898,-194.613845,0.00027397,7]
[331713699,1720684245909,-151.0,0.00027397,7]
[331713700,1720684245920,-194.613846,0.00027397,7]
[331713701,1720684245929,-151.0,0.00027397,7]
[331713702,1720684245940,-161.18089,0.00027397,7]
[331713704,1720684245949,-151.0,0.00027397,7]
[331713705,1720684245958,-161.18089,0.00027397,7]
[331713706,1720684245968,-151.0,0.00027397,7]
[331713707,1720684245979,-161.18089,0.00027397,7]
[331713708,1720684245988,-151.0,0.00027397,7]
[331713709,1720684245998,-161.18089,0.00027397,7]
[331713711,1720684246007,-161.18089,0.00027397,7]
[331713712,1720684246016,-161.18089,0.00027397,7]
[331713713,1720684246026,-161.18089,0.00027397,7]
[331713714,1720684246035,-151.0,0.00027397,7]
[331713715,1720684246045,-151.0,0.00027397,7]
[331713716,1720684246056,-151.0,0.00027397,7]
[331713717,1720684246066,-151.0,0.00027397,7]
[331713718,1720684246076,-161.18089,0.00027397,7]
[331713719,1720684246085,-151.0,0.00027397,7]
[331713720,1720684246095,-161.18089,0.00027397,7]
[331713721,1720684246106,-151.0,0.00027397,7]
[331713722,1720684246115,-161.18089,0.00027397,7]
[331713723,1720684246124,-151.0,0.00027397,7]
[331713724,1720684246133,-161.18089,0.00027397,7]
[331713725,1720684246143,-161.18089,0.00027397,7]
[331713726,1720684246154,-151.0,0.00027397,7]
[331713727,1720684246164,-161.18089,0.00027397,7]
[331713728,1720684246174,-151.0,0.00027397,7]
[331713729,1720684246184,-161.18089,0.00027397,7]
[331713730,1720684246194,-151.0,0.00027397,7]
[331713731,1720684246204,-161.18089,0.00027397,7]
[331713732,1720684246213,-253.102732,0.00027397,7]
[331713733,1720684246223,-161.18089,0.00027397,7]
[331713734,1720684246233,-161.18089,0.00027397,7]
[331713735,1720684246242,-161.18089,0.00027397,7]
[331713736,1720684246251,-161.18089,0.00027397,7]
[331713737,1720684246261,-161.180895,0.00027397,7]
[331713738,1720684246272,-680.085594,0.00027397,7]
[331713739,1720684246282,-680.085594,0.00027397,7]
[331713740,1720684246295,-680.085594,0.00027397,7]
[331713741,1720684246308,-680.085594,0.00027397,7]
[331713742,1720684246318,-680.085594,0.00027397,7]
[331713743,1720684246327,-680.085594,0.00027397,7]
[331713744,1720684246336,-680.085594,0.00027397,7]
[331713745,1720684246345,-680.085594,0.00027397,7]
[331713746,1720684246354,-680.085594,0.00027397,7]
[331713747,1720684246364,-680.085594,0.00027397,7]
[331713748,1720684246374,-680.085594,0.00027397,7]
[331713749,1720684246384,-680.085594,0.00027397,7]
[331713750,1720684246394,-680.085594,0.00027397,7]
[331713751,1720684246404,-680.085594,0.00027397,7]
[331713752,1720684246415,-680.085594,0.00027397,7]
[331713753,1720684246426,-680.085594,0.00027397,7]
[331713754,1720684246435,-680.085594,0.00027397,7]
[331713755,1720684246445,-680.085594,0.00027397,7]
[331713756,1720684246457,-680.085594,0.00027397,7]
[331713757,1720684246467,-680.08558808,0.00027397,7]
[331713758,1720684246476,-151.0,0.00027397,7]
[331713759,1720684246487,-154.106056,0.00027397,7]
[331713760,1720684246496,-468.026029,0.00027397,7]
[331713761,1720684246505,-468.026029,0.00027397,7]
[331713762,1720684246514,-468.026029,0.00027397,7]
[331713763,1720684246523,-468.026029,0.00027397,7]
[331713764,1720684246532,-468.026029,0.00027397,7]
[331713765,1720684246541,-468.026029,0.00027397,7]
[331713766,1720684246551,-468.026029,0.00027397,7]
[331713767,1720684246560,-201.03633962,0.00027399,2]
[331713768,1720684246570,-154.59033561,0.00027399,2]
[331713769,1720684246579,-175.44308885,0.000274,2]
[331713770,1720684246589,-301.44757931,0.00027426,2]
[331713771,1720684246600,-308.6883223,0.00027452,2]
[331713772,1720684246610,-43673.6362395,0.000275,2]
[331713773,1720684246619,-350.00820605,0.000275,2]
[331713774,1720684246628,-300.0,0.00027501,2]
[331713775,1720684246639,-173.70369,0.000276,2]
[331713776,1720684246650,-5047.199575,0.00027658,2]
[331713777,1720684246662,-150.0,0.0002767,2]
[331713778,1720684246672,-500.0,0.00027671,2]
[331713779,1720684246681,-500.64757361,0.00027671,7]
[331713780,1720684246691,-501.37482477,0.00027671,7]
[331713781,1720684246700,-634.83237238,0.00027671,7]
[331713782,1720684246710,-500.0,0.00027671,7]
[331713783,1720684246719,-505.99401703,0.00027671,7]
[331713784,1720684246730,-500.0,0.00027671,2]
[331713785,1720684246740,-512.46239049,0.00027671,7]
[331713786,1720684246750,-505.84872366,0.00027671,7]
[331713787,1720684246759,-1345.13,0.00027671,4]
[331713788,1720684246768,-500.0,0.00027671,2]
[331713789,1720684246778,-500.0,0.00027671,7]
[331713790,1720684246787,-500.0,0.00027671,7]
[331713791,1720684246796,-500.0,0.00027671,7]
[331713792,1720684246808,-561.9856412,0.00027671,7]
[331713793,1720684246818,-500.0,0.00027671,7]
[331713794,1720684246828,-500.0,0.00027671,7]
[331713795,1720684246837,-500.0,0.00027671,7]
[331713796,1720684246846,-500.0,0.00027671,7]
[331713797,1720684246857,-500.0,0.00027671,7]
[331713798,1720684246867,-500.0,0.00027671,7]
[331713799,1720684246877,-4436.48,0.00027671,7]
[331713800,1720684246886,-500.0,0.00027671,7]
[331713801,1720684246896,-1544.52,0.00027671,7]
[331713802,1720684246907,-576.92146685,0.00027671,7]
[331713803,1720684246917,-846.03,0.00027671,7]
[331713804,1720684246926,-500.0,0.00027671,2]
[331713805,1720684246936,-500.0,0.00027671,7]
[331713806,1720684246946,-500.0,0.00027671,7]
[331713807,1720684246955,-500.0,0.00027671,7]
[331713808,1720684246966,-500.0,0.00027671,7]
[331713809,1720684246976,-808.22,0.00027671,7]
[331713810,1720684246989,-538.92,0.00027671,7]
[331713811,1720684247001,-500.0,0.00027671,7]
[331713812,1720684247094,-500.0,0.00027671,7]
[331713813,1720684247119,-609.85873627,0.00027671,7]
[331713814,1720684247131,-500.0,0.00027671,7]
[331713815,1720684247143,-500.0,0.00027671,7]
[331713816,1720684247154,-500.0,0.00027671,7]
[331713817,1720684247165,-500.0,0.00027671,7]
[331713818,1720684247175,-521.48,0.00027671,7]
[331713819,1720684247185,-500.0,0.00027671,7]
[331713820,1720684247195,-500.0,0.00027671,7]
[331713821,1720684247204,-509.38177595,0.00027671,7]
[331713822,1720684247214,-605.47,0.00027671,7]
[331713823,1720684247224,-500.0,0.00027671,7]
[331713824,1720684247235,-500.0,0.00027671,7]
[331713825,1720684247245,-796.07,0.00027671,7]
[331713826,1720684247255,-622.93318735,0.00027671,7]
[331713827,1720684247264,-500.0,0.00027671,7]
[331713828,1720684247274,-530.4203538,0.00027671,7]
[331713829,1720684247284,-500.0,0.00027671,7]
[331713830,1720684247295,-500.0,0.00027671,7]
[331713831,1720684247305,-500.0,0.00027671,7]
[331713832,1720684247314,-663.8,0.00027671,7]
[331713833,1720684247323,-500.0,0.00027671,7]
[331713834,1720684247332,-991.21,0.00027671,7]
[331713835,1720684247341,-542.63,0.00027671,7]
[331713836,1720684247350,-2637.29,0.00027671,7]
[331713837,1720684247359,-500.0,0.00027671,7]
[331713838,1720684247368,-1442.29,0.00027671,7]
[331713839,1720684247377,-591.11,0.00027671,7]
[331713840,1720684247387,-500.0,0.00027671,7]
[331713841,1720684247396,-531.09,0.00027671,7]
[331713842,1720684247405,-500.0,0.00027671,7]
[331713843,1720684247414,-500.0,0.00027671,7]
[331713844,1720684247422,-500.0,0.00027671,7]
[331713845,1720684247431,-500.0,0.00027671,7]
[331713846,1720684247440,-1281.46,0.00027671,7]
[331713847,1720684247449,-500.0,0.00027671,7]
[331713848,1720684247459,-541.86,0.00027671,7]
[331713849,1720684247467,-285.92165846,0.00027671,7]
[331713850,1720684247478,-500.0,0.00027671,7]
[331713851,1720684247487,-601.67,0.00027671,7]
[331713852,1720684247497,-500.0,0.00027671,7]
[331713853,1720684247507,-489.30334911,0.00027671,7]
[331713854,1720684247517,-500.0,0.00027671,7]
[331713855,1720684247527,-2488.85,0.00027671,7]
[331713856,1720684247537,-500.0,0.00027671,7]
[331713857,1720684247548,-500.0,0.00027671,7]
[331713858,1720684247558,-6110.42,0.00027671,7]
[331713859,1720684247568,-794.78,0.00027671,7]
[331713860,1720684247577,-500.0,0.00027671,7]
[331713861,1720684247587,-504.55016843,0.00027671,7]
[331713862,1720684247596,-348.67485687,0.00027671,7]
[331713863,1720684247606,-581.21235626,0.00027671,7]
[331713864,1720684247615,-500.0,0.00027671,2]
[331713865,1720684247624,-431.8712906,0.00027671,7]
[331713866,1720684247633,-263.203,0.00027756,2]
[331713867,1720684247642,-503.0,0.00027756,2]
[331713868,1720684247652,-355.002,0.00027756,2]
[331713869,1720684247662,-1406.0,0.00027756,2]
[331713870,1720684247673,-248.851,0.00027756,2]
[331713871,1720684247682,-1361.21103541,0.000279,2]
[331713872,1720684247693,-5047.19957501,0.00027941,2]
[331713873,1720684247706,-500.0,0.00027945,2]
[331713874,1720684247715,-555.99480381,0.00027945,7]
[331713875,1720684247724,-500.0,0.00027945,2]
[331713876,1720684247735,-1345.13,0.00027945,4]
[331713877,1720684247744,-500.0,0.00027945,2]
[331713878,1720684247754,-500.0,0.00027945,7]
[331713879,1720684247763,-500.0,0.00027945,7]
[331713880,1720684247774,-500.0,0.00027945,7]
[331713881,1720684247783,-500.0,0.00027945,7]
[331713882,1720684247792,-500.0,0.00027945,7]
[331713883,1720684247801,-500.0,0.00027945,7]
[331713884,1720684247811,-500.0,0.00027945,7]
[331713885,1720684247819,-500.0,0.00027945,7]
[331713886,1720684247828,-500.0,0.00027945,7]
[331713887,1720684247838,-500.0,0.00027945,7]
[331713888,1720684247847,-4436.48,0.00027945,7]
[331713889,1720684247856,-1544.52,0.00027945,7]
[331713890,1720684247865,-846.03,0.00027945,7]
[331713891,1720684247874,-533.48997038,0.00027945,2]
[331713892,1720684247883,-500.0,0.00027945,7]
[331713893,1720684247891,-500.0,0.00027945,7]
[331713894,1720684247900,-500.0,0.00027945,7]
[331713895,1720684247914,-808.22,0.00027945,7]
[331713896,1720684247923,-538.92,0.00027945,7]
[331713897,1720684247932,-500.0,0.00027945,7]
[331713898,1720684247941,-573.56082225,0.00027945,7]
[331713899,1720684247950,-500.0,0.00027945,7]
[331713900,1720684247959,-500.0,0.00027945,7]
[331713901,1720684247968,-500.0,0.00027945,7]
[331713902,1720684247977,-500.0,0.00027945,7]
[331713903,1720684247987,-521.48,0.00027945,7]
[331713904,1720684247996,-474.93921109,0.00027945,7]
[331713905,1720684248008,-500.0,0.00027945,7]
[331713906,1720684248016,-605.47,0.00027945,7]
[331713907,1720684248025,-500.0,0.00027945,7]
[331713908,1720684248034,-288.4069792,0.00027945,7]
[331713909,1720684248043,-796.07,0.00027945,7]
[331713910,1720684248052,-380.63778886,0.00027945,7]
[331713911,1720684248061,-500.0,0.00027945,7]
[331713912,1720684248070,-500.0,0.00027945,7]
[331713913,1720684248079,-500.0,0.00027945,7]
[331713914,1720684248090,-663.8,0.00027945,7]
[331713915,1720684248099,-421.27826806,0.00027945,7]
[331713916,1720684248108,-991.21,0.00027945,7]
[331713917,1720684248119,-542.63,0.00027945,7]
[331713918,1720684248129,-2637.29,0.00027945,7]
[331713919,1720684248139,-500.0,0.00027945,7]
[331713920,1720684248149,-1442.29,0.00027945,7]
[331713921,1720684248158,-591.11,0.00027945,7]
[331713922,1720684248168,-240.35979658,0.00027945,7]
[331713923,1720684248177,-531.09,0.00027945,7]
[331713924,1720684248186,-500.0,0.00027945,7]
[331713925,1720684248195,-500.0,0.00027945,7]
[331713926,1720684248206,-500.0,0.00027945,7]
[331713927,1720684248216,-500.0,0.00027945,7]
[331713928,1720684248225,-1281.46,0.00027945,7]
[331713929,1720684248236,-500.0,0.00027945,7]
[331713930,1720684248245,-541.86,0.00027945,7]
[331713931,1720684248255,-500.0,0.00027945,7]
[331713932,1720684248265,-601.67,0.00027945,7]
[331713933,1720684248274,-500.0,0.00027945,7]
[331713934,1720684248284,-500.0,0.00027945,7]
[331713935,1720684248294,-2488.85,0.00027945,7]
[331713936,1720684248304,-500.0,0.00027945,7]
[331713937,1720684248314,-500.0,0.00027945,7]
[331713938,1720684248323,-6110.42,0.00027945,7]
[331713939,1720684248332,-794.78,0.00027945,7]
[331713940,1720684248342,-500.0,0.00027945,7]
[331713941,1720684248351,-500.0,0.00027945,2]
[331713942,1720684248360,-1065.65690458,0.00027966,2]
[331713943,1720684248369,-23242.58422626,0.0002799,2]
[331713944,1720684248379,-500.0,0.00028,2]
[331713945,1720684248388,-526.29790288,0.00028,2]
[331713946,1720684248397,-268.70466552,0.00028,2]
[331713947,1720684248407,-1500.0,0.00028,2]
[331713948,1720684248416,-1500.0,0.00028,2]
[331713949,1720684248426,-1500.0,0.00028,2]
[331713950,1720684248435,-1389.92,0.00028,2]
[331713951,1720684248444,-2125.64766423,0.00028035,2]
[331713952,1720684248454,-3000.0,0.000282,2]
[331713953,1720684248464,-3000.0,0.0002821,2]
[331713954,1720684248473,-520.14733782,0.00028219,2]
[331713955,1720684248484,-500.0,0.00028219,2]
[331713956,1720684248494,-1345.13,0.00028219,4]
[331713957,1720684248504,-500.0,0.00028219,2]
[331713958,1720684248513,-469.84587989,0.00028219,7]
[331713959,1720684248522,-500.0,0.00028219,7]
[331713960,1720684248531,-500.0,0.00028219,7]
[331713961,1720684248539,-500.0,0.00028219,7]
[331713962,1720684248548,-500.0,0.00028219,7]
[331713963,1720684248557,-511.65017843,0.00028219,7]
[331713964,1720684248566,-500.0,0.00028219,7]
[331713965,1720684248576,-500.0,0.00028219,7]
[331713966,1720684248585,-500.0,0.00028219,7]
[331713967,1720684248596,-500.0,0.00028219,7]
[331713968,1720684248606,-4436.48,0.00028219,7]
[331713969,1720684248615,-1544.52,0.00028219,7]
[331713970,1720684248625,-846.03,0.00028219,7]
[331713971,1720684248634,-500.0,0.00028219,7]
[331713972,1720684248643,-500.0,0.00028219,7]
[331713973,1720684248653,-500.0,0.00028219,7]
[331713974,1720684248663,-808.22,0.00028219,7]
[331713975,1720684248672,-538.92,0.00028219,7]
[331713976,1720684248681,-500.0,0.00028219,7]
[331713977,1720684248691,-500.0,0.00028219,7]
[331713978,1720684248700,-411.47391751,0.00028219,7]
[331713979,1720684248709,-500.0,0.00028219,7]
[331713980,1720684248718,-500.0,0.00028219,7]
[331713981,1720684248727,-521.48,0.00028219,7]
[331713982,1720684248740,-605.47,0.00028219,7]
[331713983,1720684248749,-500.0,0.00028219,7]
[331713984,1720684248759,-796.07,0.00028219,7]
[331713985,1720684248767,-500.0,0.00028219,7]
[331713986,1720684248777,-500.0,0.00028219,7]
[331713987,1720684248786,-500.0,0.00028219,7]
[331713988,1720684248795,-663.8,0.00028219,7]
[331713989,1720684248805,-991.21,0.00028219,7]
[331713990,1720684248814,-542.63,0.00028219,7]
[331713991,1720684248823,-2637.29,0.00028219,7]
[331713992,1720684248832,-500.0,0.00028219,7]
[331713993,1720684248842,-1442.29,0.00028219,7]
[331713994,1720684248851,-591.11,0.00028219,7]
[331713995,1720684248860,-531.09,0.00028219,7]
[331713996,1720684248870,-500.0,0.00028219,7]
[331713997,1720684248880,-500.0,0.00028219,7]
[331713998,1720684248889,-508.75326275,0.00028219,7]
[331713999,1720684248898,-500.0,0.00028219,7]
[331714000,1720684248907,-1281.46,0.00028219,7]
[331714001,1720684248916,-500.0,0.00028219,7]
[331714002,1720684248925,-541.86,0.00028219,7]
[331714003,1720684248934,-500.0,0.00028219,7]
[331714004,1720684248944,-601.67,0.00028219,7]
[331714005,1720684248954,-500.0,0.00028219,7]
[331714006,1720684248964,-500.0,0.00028219,7]
[331714007,1720684248973,-2488.85,0.00028219,7]
[331714008,1720684248985,-500.0,0.00028219,7]
[331714009,1720684248994,-500.0,0.00028219,7]
[331714010,1720684249003,-6110.42,0.00028219,7]
[331714011,1720684249011,-794.78,0.00028219,7]
[331714012,1720684249021,-500.0,0.00028219,7]
[331714013,1720684249030,-500.0,0.00028219,2]
[331714014,1720684249039,-3000.0,0.0002822,2]
[331714015,1720684249048,-3000.0,0.0002823,2]
[331714016,1720684249057,-3000.0,0.0002824,2]
[331714017,1720684249066,-3000.0,0.0002825,2]
[331714018,1720684249075,-3000.0,0.0002826,2]
[331714019,1720684249084,-3000.0,0.0002827,2]
[331714020,1720684249093,-3000.0,0.0002828,2]
[331714021,1720684249102,-3000.0,0.0002829,2]
[331714022,1720684249111,-3608.295898,0.000283,2]
[331714023,1720684249120,-620.00000017,0.0002839,2]
[331714024,1720684249129,-500.0,0.00028493,2]
[331714025,1720684249139,-1345.13,0.00028493,4]
[331714026,1720684249148,-500.0,0.00028493,2]
[331714027,1720684249157,-500.0,0.00028493,7]
[331714028,1720684249166,-500.0,0.00028493,7]
[331714029,1720684249175,-500.0,0.00028493,7]
[331714030,1720684249184,-500.0,0.00028493,7]
[331714031,1720684249194,-500.0,0.00028493,7]
[331714032,1720684249203,-500.0,0.00028493,7]
[331714033,1720684249212,-500.0,0.00028493,7]
[331714034,1720684249221,-500.0,0.00028493,7]
[331714035,1720684249232,-4436.48,0.00028493,7]
[331714036,1720684249241,-1544.52,0.00028493,7]
[331714037,1720684249250,-846.03,0.00028493,7]
[331714038,1720684249259,-500.0,0.00028493,7]
[331714039,1720684249268,-500.0,0.00028493,7]
[331714040,1720684249277,-500.0,0.00028493,7]
[331714041,1720684249287,-808.22,0.00028493,7]
[331714042,1720684249297,-538.92,0.00028493,7]
[331714043,1720684249305,-500.0,0.00028493,7]
[331714044,1720684249314,-500.0,0.00028493,7]
[331714045,1720684249323,-521.48,0.00028493,7]
[331714046,1720684249331,-605.47,0.00028493,7]
[331714047,1720684249340,-500.0,0.00028493,7]
[331714048,1720684249349,-796.07,0.00028493,7]
[331714049,1720684249358,-500.0,0.00028493,7]
[331714050,1720684249368,-500.0,0.00028493,7]
[331714051,1720684249379,-500.0,0.00028493,7]
[331714052,1720684249389,-663.8,0.00028493,7]
[331714053,1720684249398,-991.21,0.00028493,7]
[331714054,1720684249408,-542.63,0.00028493,7]
[331714055,1720684249418,-2637.29,0.00028493,7]
[331714056,1720684249428,-500.0,0.00028493,7]
[331714057,1720684249437,-1442.29,0.00028493,7]
[331714058,1720684249447,-591.11,0.00028493,7]
[331714059,1720684249457,-531.09,0.00028493,7]
[331714060,1720684249466,-500.0,0.00028493,7]
[331714061,1720684249475,-500.0,0.00028493,7]
[331714062,1720684249576,-429.68827956,0.00028493,7]
[331714063,1720684249586,-1281.46,0.00028493,7]
[331714064,1720684249595,-500.0,0.00028493,7]
[331714065,1720684249605,-541.86,0.00028493,7]
[331714066,1720684249615,-500.0,0.00028493,7]
[331714067,1720684249625,-601.67,0.00028493,7]
[331714068,1720684249634,-500.0,0.00028493,7]
[331714069,1720684249644,-500.0,0.00028493,7]
[331714070,1720684249653,-2488.85,0.00028493,7]
[331714071,1720684249662,-500.0,0.00028493,7]
[331714072,1720684249672,-500.0,0.00028493,7]
[331714073,1720684249681,-6110.42,0.00028493,7]
[331714074,1720684249690,-794.78,0.00028493,7]
[331714075,1720684249700,-500.0,0.00028493,7]
[331714076,1720684249709,-578.11557591,0.00028493,2]
[331714077,1720684249719,-799.23663089,0.000285,2]
[331714078,1720684249728,-823.0,0.00028592,2]
[331714079,1720684249739,-454.90849988,0.00028619,2]
[331714080,1720684249749,-150.0,0.0002867,2]
[331714081,1720684249759,-500.0,0.00028767,2]
[331714082,1720684249768,-1345.13,0.00028767,4]
[331714083,1720684249777,-500.0,0.00028767,2]
[331714084,1720684249787,-500.0,0.00028767,7]
[331714085,1720684249796,-500.0,0.00028767,7]
[331714086,1720684249806,-500.0,0.00028767,7]
[331714087,1720684249815,-500.0,0.00028767,7]
[331714088,1720684249824,-500.0,0.00028767,7]
[331714089,1720684249834,-500.0,0.00028767,7]
[331714090,1720684249843,-500.0,0.00028767,7]
[331714091,1720684249853,-4436.48,0.00028767,7]
[331714092,1720684249862,-1544.52,0.00028767,7]
[331714093,1720684249872,-846.03,0.00028767,7]
[331714094,1720684249882,-500.0,0.00028767,7]
[331714095,1720684249891,-500.0,0.00028767,7]
[331714096,1720684249901,-500.0,0.00028767,7]
[331714097,1720684249910,-808.22,0.00028767,7]
[331714098,1720684249919,-538.92,0.00028767,7]
[331714099,1720684249929,-500.0,0.00028767,7]
[331714100,1720684249938,-500.0,0.00028767,7]
[331714101,1720684249947,-521.48,0.00028767,7]
[331714102,1720684249956,-605.47,0.00028767,7]
[331714103,1720684249966,-500.0,0.00028767,7]
[331714104,1720684249975,-796.07,0.00028767,7]
[331714105,1720684249986,-500.0,0.00028767,7]
[331714106,1720684249995,-500.0,0.00028767,7]
[331714107,1720684250003,-500.0,0.00028767,7]
[331714108,1720684250012,-663.8,0.00028767,7]
[331714109,1720684250022,-991.21,0.00028767,7]
[331714110,1720684250031,-542.63,0.00028767,7]
[331714111,1720684250041,-2637.29,0.00028767,7]
[331714112,1720684250050,-500.0,0.00028767,7]
[331714113,1720684250059,-591.11,0.00028767,7]
[331714114,1720684250069,-1442.29,0.00028767,7]
[331714115,1720684250079,-531.09,0.00028767,7]
[331714116,1720684250088,-500.0,0.00028767,7]
[331714117,1720684250098,-500.0,0.00028767,7]
[331714118,1720684250108,-1281.46,0.00028767,7]
[331714119,1720684250118,-500.0,0.00028767,7]
[331714120,1720684250127,-541.86,0.00028767,7]
[331714121,1720684250137,-500.0,0.00028767,7]
[331714122,1720684250147,-601.67,0.00028767,7]
[331714123,1720684250158,-500.0,0.00028767,7]
[331714124,1720684250168,-500.0,0.00028767,7]
[331714125,1720684250178,-2488.85,0.00028767,7]
[331714126,1720684250187,-500.0,0.00028767,7]
[331714127,1720684250197,-500.0,0.00028767,7]
[331714128,1720684250206,-6110.42,0.00028767,7]
[331714129,1720684250216,-794.78,0.00028767,7]
[331714130,1720684250226,-500.0,0.00028767,7]
[331714131,1720684250235,-89658.87541192,0.0002877,2]
[331714132,1720684250245,-1000.23427898,0.000288,3]
[331714133,1720684250254,-153.0,0.00028986,2]
[331714134,1720684250263,-215.8382053,0.00028986,2]
[331714135,1720684250273,-500.0,0.00029,2]
[331714136,1720684250283,-1000.0,0.00029,29]
[331714137,1720684250293,-211.742,0.00029037,2]
[331714138,1720684250304,-235.629,0.00029037,2]
[331714139,1720684250313,-150.379,0.00029037,2]
[331714140,1720684250323,-150.0,0.00029037,2]
[331714141,1720684250333,-585.28300967,0.00029041,2]
[331714142,1720684250342,-1345.13,0.00029041,4]
[331714143,1720684250351,-500.0,0.00029041,2]
[331714144,1720684250360,-500.0,0.00029041,7]
[331714145,1720684250370,-500.0,0.00029041,7]
[331714146,1720684250379,-500.0,0.00029041,7]
[331714147,1720684250388,-500.0,0.00029041,7]
[331714148,1720684250398,-500.0,0.00029041,7]
[331714149,1720684250407,-500.0,0.00029041,7]
[331714150,1720684250416,-4436.48,0.00029041,7]
[331714151,1720684250426,-1544.52,0.00029041,7]
[331714152,1720684250435,-846.03,0.00029041,7]
[331714153,1720684250444,-500.0,0.00029041,7]
[331714154,1720684250454,-500.0,0.00029041,7]
[331714155,1720684250463,-500.0,0.00029041,7]
[331714156,1720684250473,-808.22,0.00029041,7]
[331714157,1720684250482,-538.92,0.00029041,7]
[331714158,1720684250491,-500.0,0.00029041,7]
[331714159,1720684250501,-500.0,0.00029041,7]
[331714160,1720684250511,-521.48,0.00029041,7]
[331714161,1720684250521,-605.47,0.00029041,7]
[331714162,1720684250531,-489.20309489,0.00029041,7]
[331714163,1720684250540,-796.07,0.00029041,7]
[331714164,1720684250550,-500.0,0.00029041,7]
[331714165,1720684250559,-500.0,0.00029041,7]
[331714166,1720684250569,-500.0,0.00029041,7]
[331714167,1720684250579,-663.8,0.00029041,7]
[331714168,1720684250588,-991.21,0.00029041,7]
[331714169,1720684250598,-542.63,0.00029041,7]
[331714170,1720684250608,-2637.29,0.00029041,7]
[331714171,1720684250618,-500.0,0.00029041,7]
[331714172,1720684250628,-1442.29,0.00029041,7]
[331714173,1720684250637,-591.11,0.00029041,7]
[331714174,1720684250647,-531.09,0.00029041,7]
[331714175,1720684250656,-500.0,0.00029041,7]
[331714176,1720684250666,-500.0,0.00029041,7]
[331714177,1720684250676,-1281.46,0.00029041,7]